fUSD/lending_fUSD_20250806
["ID","MTS","AMOUNT","RATE_DAILY","PERIOD"]
[377617048,1754459465386,-150.0,0.00035773,2]
[377617049,1754459465396,-566.99441814,0.0003579,2]
[377617050,1754459465406,-316.12687005,0.0003579,2]
[377617051,1754459465416,-227.5728969,0.0003579,2]
[377617052,1754459465427,-563.19137636,0.0003579,2]
[377617053,1754459465437,-1985.35824442,0.0003579,2]
[377617054,1754459465448,-374.47579526,0.0003579,2]
[377617055,1754459465458,-151.0,0.00035794,6]
[377617056,1754459465468,-150.0,0.00035795,2]
[377617057,1754459465478,-1000.0,0.00035798,7]
[377617058,1754459465488,-781.42284872,0.000358,120]
[377617059,1754459465498,-1700.0,0.000358,13]
[377617060,1754459465509,-150.0,0.00035844,2]
[377617061,1754459465519,-150.0,0.0003585,2]
[377617062,1754459465529,-150.0,0.00035853,2]
[377617063,1754459465540,-1000.0,0.00035861,7]
[377617064,1754459465554,-1000.0,0.00035862,7]
[377617065,1754459465564,-150.0,0.00035863,7]
[377617066,1754459465574,-500.0,0.00035873,5]
[377617067,1754459465585,-151.0,0.00035885,7]
[377617068,1754459465595,-1501.97,0.00035889,14]
[377617069,1754459465607,-1501.97,0.00035889,14]
[377617070,1754459465617,-1501.97,0.00035889,14]
[377617071,1754459465628,-1501.97,0.00035889,14]
[377617072,1754459465638,-1501.97,0.00035889,14]
[377617073,1754459465649,-1501.97,0.00035889,14]
[377617074,1754459465661,-710.69,0.00035889,14]
[377617075,1754459465672,-710.69,0.00035889,14]
[377617076,1754459465683,-710.69,0.00035889,14]
[377617077,1754459465694,-710.69,0.00035889,14]
[377617078,1754459465705,-710.69,0.00035889,14]
[377617079,1754459465716,-710.69,0.00035889,14]
[377617080,1754459465727,-710.69,0.00035889,14]
[377617081,1754459465738,-710.83,0.00035889,14]
[377617082,1754459465748,-500.0,0.00035889,14]
[377617083,1754459465757,-500.0,0.00035889,14]
[377617084,1754459465768,-500.0,0.00035889,14]
[377617085,1754459465779,-500.0,0.00035889,14]
[377617086,1754459465790,-539.88,0.00035889,14]
[377617087,1754459465801,-500.0,0.00035889,14]
[377617088,1754459465811,-500.0,0.00035889,14]
[377617089,1754459465823,-500.0,0.00035889,14]
[377617090,1754459465834,-500.0,0.00035889,14]
[377617091,1754459465847,-500.0,0.00035889,14]
[377617092,1754459465858,-500.0,0.00035889,14]
[377617093,1754459465868,-500.0,0.00035889,14]
[377617094,1754459465878,-500.0,0.00035889,14]
[377617095,1754459465888,-362.72337573,0.00035889,14]
[377617096,1754459465898,-385.899428,0.0003589,7]
[377617097,1754459465908,-385.899428,0.0003589,7]
[377617098,1754459465917,-385.899428,0.0003589,7]
[377617099,1754459465928,-385.899428,0.0003589,7]
[377617100,1754459465937,-385.899428,0.0003589,7]
[377617101,1754459465947,-385.899428,0.0003589,7]
[377617102,1754459465957,-385.899428,0.0003589,7]
[377617103,1754459465967,-385.899428,0.0003589,7]
[377617104,1754459465980,-385.899428,0.0003589,7]
[377617105,1754459465991,-385.899424,0.0003589,7]
[377617106,1754459466001,-151.145765,0.0003589,7]
[377617107,1754459466011,-156.074612,0.0003589,14]
[377617108,1754459466021,-1200.923531,0.0003589,14]
[377617109,1754459466031,-972.986743,0.0003589,14]
[377617110,1754459466042,-1342.473565,0.0003589,14]
[377617111,1754459466052,-178.982347,0.0003589,14]
[377617112,1754459466062,-2500.0,0.0003589,14]
[377617113,1754459466072,-207.45742031,0.0003589,14]
[377617114,1754459466083,-400.0,0.0003589,14]
[377617115,1754459466093,-400.0,0.0003589,14]
[377617116,1754459466104,-400.0,0.0003589,14]
[377617117,1754459466114,-400.0,0.0003589,14]
[377617118,1754459466124,-400.0,0.0003589,14]
[377617119,1754459466134,-400.0,0.0003589,14]
[377617120,1754459466144,-400.0,0.0003589,14]
[377617121,1754459466154,-400.0,0.0003589,14]
[377617122,1754459466164,-400.0,0.0003589,14]
[377617123,1754459466174,-400.0,0.0003589,14]
[377617124,1754459466184,-400.0,0.0003589,14]
[377617125,1754459466194,-400.0,0.0003589,14]
[377617126,1754459466204,-400.0,0.0003589,14]
[377617127,1754459466213,-400.0,0.0003589,14]
[377617128,1754459466223,-400.0,0.0003589,14]
[377617129,1754459466233,-400.0,0.0003589,14]
[377617130,1754459466243,-400.0,0.0003589,14]
[377617131,1754459466254,-400.0,0.0003589,14]
[377617132,1754459466263,-400.0,0.0003589,14]
[377617133,1754459466273,-400.0,0.0003589,14]
[377617134,1754459466283,-400.0,0.0003589,14]
[377617135,1754459466293,-400.0,0.0003589,14]
[377617136,1754459466302,-400.0,0.0003589,14]
[377617137,1754459466312,-400.0,0.0003589,2]
[377617138,1754459466323,-400.0,0.0003589,14]
[377617139,1754459466332,-400.0,0.0003589,14]
[377617140,1754459466342,-400.0,0.0003589,14]
[377617141,1754459466353,-400.0,0.0003589,14]
[377617142,1754459466363,-400.0,0.0003589,14]
[377617143,1754459466373,-1390.91,0.0003589,14]
[377617144,1754459466383,-400.0,0.0003589,14]
[377617145,1754459466394,-400.0,0.0003589,14]
[377617146,1754459466403,-434.23,0.0003589,14]
[377617147,1754459466414,-400.0,0.0003589,14]
[377617148,1754459466424,-400.0,0.0003589,14]
[377617149,1754459466434,-400.0,0.0003589,14]
[377617150,1754459466444,-574.49,0.0003589,14]
[377617151,1754459466454,-400.0,0.0003589,14]
[377617152,1754459466464,-400.0,0.0003589,14]
[377617153,1754459466474,-400.0,0.0003589,14]
[377617154,1754459466484,-836.13,0.0003589,14]
[377617155,1754459466494,-965.65,0.0003589,14]
[377617156,1754459466504,-400.0,0.0003589,14]
[377617157,1754459466514,-400.0,0.0003589,14]
[377617158,1754459466524,-464.13,0.0003589,14]
[377617159,1754459466535,-441.4,0.0003589,14]
[377617160,1754459466548,-374.42015644,0.0003589,14]
[377617161,1754459466559,-400.0,0.0003589,14]
[377617162,1754459466879,-400.0,0.0003589,14]
[377617163,1754459466890,-400.0,0.0003589,14]
[377617164,1754459466900,-968.45,0.0003589,14]
[377617165,1754459466909,-400.0,0.0003589,14]
[377617166,1754459466920,-400.0,0.0003589,14]
[377617167,1754459466929,-1786.3,0.0003589,14]
[377617168,1754459466939,-1135.13,0.0003589,14]
[377617169,1754459466949,-400.0,0.0003589,14]
[377617170,1754459466959,-1738.45,0.0003589,14]
[377617171,1754459466969,-400.0,0.0003589,14]
[377617172,1754459466981,-400.0,0.0003589,14]
[377617173,1754459466991,-1691.55,0.0003589,14]
[377617174,1754459467000,-1415.36,0.0003589,14]
[377617175,1754459467010,-400.0,0.0003589,14]
[377617176,1754459467020,-1337.66,0.0003589,14]
[377617177,1754459467030,-400.0,0.0003589,14]
[377617178,1754459467040,-400.0,0.0003589,14]
[377617179,1754459467050,-400.0,0.0003589,14]
[377617180,1754459467059,-555.6,0.0003589,14]
[377617181,1754459467069,-1374.53,0.0003589,14]
[377617182,1754459467079,-1763.39,0.0003589,14]
[377617183,1754459467089,-400.0,0.0003589,14]
[377617184,1754459467098,-400.0,0.0003589,14]
[377617185,1754459467108,-400.0,0.0003589,14]
[377617186,1754459467118,-400.0,0.0003589,14]
[377617187,1754459467128,-860.38,0.0003589,14]
[377617188,1754459467137,-400.0,0.0003589,14]
[377617189,1754459467147,-222.00113226,0.0003589,14]
[377617190,1754459467157,-181.46,0.0003589,14]
[377617191,1754459467166,-1567.04,0.0003589,14]
[377617192,1754459467175,-400.0,0.0003589,14]
[377617193,1754459467185,-523.6,0.0003589,14]
[377617194,1754459467195,-1980.49,0.0003589,14]
[377617195,1754459467205,-1022.57,0.0003589,14]
[377617196,1754459467215,-1488.83,0.0003589,14]
[377617197,1754459467224,-412.82,0.0003589,14]
[377617198,1754459467234,-488.68,0.0003589,14]
[377617199,1754459467243,-400.0,0.0003589,14]
[377617200,1754459467252,-1562.32,0.0003589,14]
[377617201,1754459467262,-831.52,0.0003589,14]
[377617202,1754459467272,-1032.2,0.0003589,14]
[377617203,1754459467282,-400.0,0.0003589,14]
[377617204,1754459467293,-400.0,0.0003589,14]
[377617205,1754459467302,-400.0,0.0003589,14]
[377617206,1754459467312,-400.0,0.0003589,14]
[377617207,1754459467322,-400.0,0.0003589,14]
[377617208,1754459467331,-640.35,0.0003589,14]
[377617209,1754459467340,-515.22,0.0003589,14]
[377617210,1754459467350,-400.0,0.0003589,14]
[377617211,1754459467360,-794.14,0.0003589,14]
[377617212,1754459467370,-400.0,0.0003589,14]
[377617213,1754459467380,-1420.44,0.0003589,14]
[377617214,1754459467390,-1569.89,0.0003589,14]
[377617215,1754459467400,-400.0,0.0003589,14]
[377617216,1754459467410,-400.0,0.0003589,14]
[377617217,1754459467420,-400.0,0.0003589,14]
[377617218,1754459467431,-1276.94,0.0003589,14]
[377617219,1754459467440,-1260.75,0.0003589,14]
[377617220,1754459467450,-400.0,0.0003589,14]
[377617221,1754459467459,-698.04,0.0003589,14]
[377617222,1754459467469,-400.0,0.0003589,14]
[377617223,1754459467478,-400.0,0.0003589,14]
[377617224,1754459467487,-2263.11,0.0003589,14]
[377617225,1754459467498,-400.0,0.0003589,14]
[377617226,1754459467508,-400.0,0.0003589,14]
[377617227,1754459467520,-911.09,0.0003589,14]
[377617228,1754459467531,-400.0,0.0003589,14]
[377617229,1754459467543,-811.57,0.0003589,14]
[377617230,1754459467558,-400.0,0.0003589,14]
[377617231,1754459467569,-400.0,0.0003589,14]
[377617232,1754459467579,-400.0,0.0003589,14]
[377617233,1754459467588,-771.27,0.0003589,14]
[377617234,1754459467598,-400.0,0.0003589,2]
[377617235,1754459467608,-400.0,0.0003589,14]
[377617236,1754459467617,-400.0,0.0003589,14]
[377617237,1754459467628,-400.0,0.0003589,14]
[377617238,1754459467638,-400.0,0.0003589,14]
[377617239,1754459467648,-473.4,0.0003589,14]
[377617240,1754459467659,-400.0,0.0003589,14]
[377617241,1754459467670,-400.0,0.0003589,14]
[377617242,1754459467680,-421.62,0.0003589,14]
[377617243,1754459467691,-1126.04,0.0003589,14]
[377617244,1754459467700,-495.82,0.0003589,14]
[377617245,1754459467713,-776.1,0.0003589,14]
[377617246,1754459467723,-967.29,0.0003589,14]
[377617247,1754459467735,-400.0,0.0003589,14]
[377617248,1754459467746,-400.0,0.0003589,14]
[377617249,1754459467758,-778.91,0.0003589,14]
[377617250,1754459467768,-400.0,0.0003589,14]
[377617251,1754459467781,-581.26,0.0003589,14]
[377617252,1754459467791,-400.0,0.0003589,14]
[377617253,1754459467801,-400.0,0.0003589,14]
[377617254,1754459467812,-492.02,0.0003589,14]
[377617255,1754459467822,-400.0,0.0003589,14]
[377617256,1754459467833,-1168.16,0.0003589,14]
[377617257,1754459467844,-400.0,0.0003589,14]
[377617258,1754459467854,-400.0,0.0003589,7]
[377617259,1754459467864,-400.0,0.0003589,14]
[377617260,1754459467875,-420.81,0.0003589,14]
[377617261,1754459467886,-400.0,0.0003589,14]
[377617262,1754459467896,-400.0,0.0003589,14]
[377617263,1754459467905,-1624.23,0.0003589,14]
[377617264,1754459467915,-400.0,0.0003589,14]
[377617265,1754459467924,-1913.25,0.0003589,14]
[377617266,1754459467933,-400.0,0.0003589,14]
[377617267,1754459467943,-400.0,0.0003589,14]
[377617268,1754459467952,-1786.53,0.0003589,14]
[377617269,1754459467961,-1424.06,0.0003589,14]
[377617270,1754459467970,-646.09,0.0003589,14]
[377617271,1754459467979,-1204.58,0.0003589,14]
[377617272,1754459467989,-400.0,0.0003589,14]
[377617273,1754459467998,-1022.39,0.0003589,14]
[377617274,1754459468007,-1333.89,0.0003589,14]
[377617275,1754459468017,-400.0,0.0003589,14]
[377617276,1754459468026,-400.0,0.0003589,14]
[377617277,1754459468036,-1867.89,0.0003589,14]
[377617278,1754459468046,-1293.41,0.0003589,14]
[377617279,1754459468056,-781.84,0.0003589,14]
[377617280,1754459468065,-400.0,0.0003589,14]
[377617281,1754459468076,-400.0,0.0003589,14]
[377617282,1754459468086,-1041.99,0.0003589,14]
[377617283,1754459468096,-1000.85,0.0003589,14]
[377617284,1754459468107,-786.35,0.0003589,14]
[377617285,1754459468117,-317.13121318,0.0003589,14]
[377617286,1754459468127,-1763.73,0.0003589,14]
[377617287,1754459468136,-537.19,0.0003589,14]
[377617288,1754459468146,-400.0,0.0003589,14]
[377617289,1754459468155,-848.93,0.0003589,14]
[377617290,1754459468165,-400.0,0.0003589,14]
[377617291,1754459468174,-1137.96,0.0003589,14]
[377617292,1754459468184,-400.0,0.0003589,14]
[377617293,1754459468194,-400.0,0.0003589,14]
[377617294,1754459468204,-2027.86,0.0003589,14]
[377617295,1754459468213,-375.56005845,0.0003589,14]
[377617296,1754459468224,-836.27,0.0003589,14]
[377617297,1754459468233,-400.0,0.0003589,14]
[377617298,1754459468242,-489.89,0.0003589,14]
[377617299,1754459468252,-563.18,0.0003589,14]
[377617300,1754459468262,-400.0,0.0003589,14]
[377617301,1754459468272,-546.81,0.0003589,14]
[377617302,1754459468282,-468.02,0.0003589,14]
[377617303,1754459468292,-400.0,0.0003589,14]
[377617304,1754459468301,-738.86,0.0003589,14]
[377617305,1754459468311,-400.0,0.0003589,14]
[377617306,1754459468323,-492.8,0.0003589,14]
[377617307,1754459468335,-400.0,0.0003589,14]
[377617308,1754459468345,-886.1,0.0003589,14]
[377617309,1754459468357,-400.0,0.0003589,14]
[377617310,1754459468367,-1164.86,0.0003589,14]
[377617311,1754459468376,-879.01,0.0003589,14]
[377617312,1754459468387,-1179.57,0.0003589,14]
[377617313,1754459468397,-2444.08,0.0003589,14]
[377617314,1754459468407,-759.44,0.0003589,14]
[377617315,1754459468416,-906.74,0.0003589,14]
[377617316,1754459468426,-1721.59,0.0003589,14]
[377617317,1754459468435,-400.0,0.0003589,14]
[377617318,1754459468445,-400.0,0.0003589,14]
[377617319,1754459468454,-400.0,0.0003589,14]
[377617320,1754459468463,-400.0,0.0003589,14]
[377617321,1754459468472,-725.17,0.0003589,14]
[377617322,1754459468482,-400.0,0.0003589,14]
[377617323,1754459468491,-1567.22,0.0003589,14]
[377617324,1754459468501,-400.0,0.0003589,14]
[377617325,1754459468510,-400.0,0.0003589,14]
[377617326,1754459468520,-400.0,0.0003589,14]
[377617327,1754459468529,-588.99,0.0003589,14]
[377617328,1754459468540,-400.0,0.0003589,14]
[377617329,1754459468555,-400.0,0.0003589,14]
[377617330,1754459468564,-400.99701555,0.0003589,14]
[377617331,1754459468573,-775.76,0.0003589,14]
[377617332,1754459468582,-623.87,0.0003589,14]
[377617333,1754459468593,-1646.53,0.0003589,14]
[377617334,1754459468603,-853.59,0.0003589,14]
[377617335,1754459468612,-400.0,0.0003589,14]
[377617336,1754459468623,-400.0,0.0003589,14]
[377617337,1754459468633,-400.0,0.0003589,14]
[377617338,1754459468642,-488.41,0.0003589,14]
[377617339,1754459468652,-737.97,0.0003589,14]
[377617340,1754459468661,-484.77,0.0003589,14]
[377617341,1754459468671,-400.0,0.0003589,14]
[377617342,1754459468681,-459.54,0.0003589,14]
[377617343,1754459468690,-481.56,0.0003589,14]
[377617344,1754459468700,-400.0,0.0003589,14]
[377617345,1754459468711,-1055.87,0.0003589,14]
[377617346,1754459468721,-400.0,0.0003589,14]
[377617347,1754459468730,-841.84,0.0003589,14]
[377617348,1754459468740,-400.0,0.0003589,14]
[377617349,1754459468750,-400.0,0.0003589,14]
[377617350,1754459468760,-400.0,0.0003589,14]
[377617351,1754459468770,-406.5,0.0003589,14]
[377617352,1754459468780,-407.41982844,0.0003589,14]
[377617353,1754459468790,-1156.07,0.0003589,14]
[377617354,1754459468802,-426.08,0.0003589,14]
[377617355,1754459468811,-825.97,0.0003589,14]
[377617356,1754459468821,-408.86,0.0003589,14]
[377617357,1754459468831,-186.38,0.0003589,14]
[377617358,1754459468841,-1995.07,0.0003589,14]
[377617359,1754459468851,-1172.69,0.0003589,14]
[377617360,1754459468860,-625.07,0.0003589,14]
[377617361,1754459468870,-400.0,0.0003589,14]
[377617362,1754459468880,-702.92,0.0003589,14]
[377617363,1754459468890,-1933.93,0.0003589,14]
[377617364,1754459468899,-400.0,0.0003589,14]
[377617365,1754459468909,-1955.55,0.0003589,14]
[377617366,1754459468918,-400.0,0.0003589,14]
[377617367,1754459468928,-400.0,0.0003589,14]
[377617368,1754459468938,-400.0,0.0003589,14]
[377617369,1754459468950,-483.06,0.0003589,14]
[377617370,1754459468961,-400.0,0.0003589,14]
[377617371,1754459468971,-1759.77,0.0003589,14]
[377617372,1754459468981,-1694.74,0.0003589,14]
[377617373,1754459468991,-465.58,0.0003589,14]
[377617374,1754459469002,-1167.69,0.0003589,14]
[377617375,1754459469012,-2018.76,0.0003589,14]
[377617376,1754459469021,-602.44,0.0003589,14]
[377617377,1754459469031,-1088.87,0.0003589,14]
[377617378,1754459469040,-1488.55,0.0003589,14]
[377617379,1754459469050,-1838.73,0.0003589,14]
[377617380,1754459469059,-400.0,0.0003589,14]
[377617381,1754459469069,-400.0,0.0003589,14]
[377617382,1754459469079,-1713.66,0.0003589,14]
[377617383,1754459469088,-1550.0,0.0003589,14]
[377617384,1754459469098,-400.0,0.0003589,14]
[377617385,1754459469107,-502.69,0.0003589,14]
[377617386,1754459469116,-842.35,0.0003589,14]
[377617387,1754459469126,-1358.6,0.0003589,14]
[377617388,1754459469136,-437.68,0.0003589,14]
[377617389,1754459469146,-937.12,0.0003589,14]
[377617390,1754459469156,-765.52,0.0003589,14]
[377617391,1754459469167,-1772.08,0.0003589,14]
[377617392,1754459469177,-400.0,0.0003589,14]
[377617393,1754459469188,-400.0,0.0003589,14]
[377617394,1754459469197,-501.45,0.0003589,14]
[377617395,1754459469206,-1844.65,0.0003589,14]
[377617396,1754459469216,-905.35,0.0003589,14]
[377617397,1754459469225,-380.19245659,0.0003589,14]
[377617398,1754459469343,-1031.94,0.0003589,14]
[377617399,1754459469354,-581.55,0.0003589,14]
[377617400,1754459469364,-953.5,0.0003589,14]
[377617401,1754459469375,-400.0,0.0003589,14]
[377617402,1754459469384,-400.0,0.0003589,14]
[377617403,1754459469395,-400.0,0.0003589,14]
[377617404,1754459469404,-400.0,0.0003589,14]
[377617405,1754459469413,-400.0,0.0003589,14]
[377617406,1754459469423,-2256.17,0.0003589,14]
[377617407,1754459469432,-903.37,0.0003589,14]
[377617408,1754459469441,-400.0,0.0003589,14]
[377617409,1754459469452,-400.0,0.0003589,14]
[377617410,1754459469461,-400.0,0.0003589,14]
[377617411,1754459469470,-966.04,0.0003589,14]
[377617412,1754459469479,-400.0,0.0003589,14]
[377617413,1754459469490,-400.0,0.0003589,14]
[377617414,1754459469500,-1042.73,0.0003589,14]
[377617415,1754459469509,-169.01669397,0.0003589,14]
[377617416,1754459469520,-1018.17,0.0003589,14]
[377617417,1754459469530,-401.07689694,0.0003589,14]
[377617418,1754459469540,-1946.18,0.0003589,14]
[377617419,1754459469553,-477.62,0.0003589,14]
[377617420,1754459469563,-400.0,0.0003589,14]
[377617421,1754459469573,-171.14166453,0.0003589,14]
[377617422,1754459469584,-1304.36,0.0003589,14]
[377617423,1754459469595,-1143.12,0.0003589,14]
[377617424,1754459469605,-400.0,0.0003589,14]
[377617425,1754459469614,-400.0,0.0003589,14]
[377617426,1754459469625,-402.18814074,0.0003589,14]
[377617427,1754459469635,-1379.88,0.0003589,14]
[377617428,1754459469643,-400.90146679,0.0003589,14]
[377617429,1754459469652,-400.0,0.0003589,14]
[377617430,1754459469661,-1301.17,0.0003589,14]
[377617431,1754459469670,-1279.88,0.0003589,14]
[377617432,1754459469679,-401.26797536,0.0003589,14]
[377617433,1754459469688,-400.0,0.0003589,14]
[377617434,1754459469697,-400.0,0.0003589,14]
[377617435,1754459469707,-1000.86,0.0003589,14]
[377617436,1754459469716,-400.0,0.0003589,14]
[377617437,1754459469725,-809.91,0.0003589,14]
[377617438,1754459469734,-1000.68,0.0003589,14]
[377617439,1754459469744,-458.86,0.0003589,14]
[377617440,1754459469755,-623.6,0.0003589,14]
[377617441,1754459469766,-1880.52,0.0003589,14]
[377617442,1754459469777,-400.0,0.0003589,14]
[377617443,1754459469788,-1373.36,0.0003589,14]
[377617444,1754459469797,-570.22,0.0003589,14]
[377617445,1754459469806,-787.25,0.0003589,14]
[377617446,1754459469816,-1851.66,0.0003589,14]
[377617447,1754459469826,-1009.6,0.0003589,14]
[377617448,1754459469837,-1150.18,0.0003589,14]
[377617449,1754459469848,-1775.34,0.0003589,14]
[377617450,1754459469858,-1699.69,0.0003589,14]
[377617451,1754459469868,-971.7,0.0003589,14]
[377617452,1754459469877,-400.0,0.0003589,14]
[377617453,1754459469886,-400.0,0.0003589,14]
[377617454,1754459469897,-400.0,0.0003589,14]
[377617455,1754459469907,-2071.2,0.0003589,14]
[377617456,1754459469918,-400.0,0.0003589,14]
[377617457,1754459469929,-400.0,0.0003589,14]
[377617458,1754459469939,-1211.36,0.0003589,14]
[377617459,1754459469951,-607.59,0.0003589,14]
[377617460,1754459469962,-400.0,0.0003589,14]
[377617461,1754459469973,-5003.6,0.0003589,14]
[377617462,1754459469983,-676.94,0.0003589,14]
[377617463,1754459469993,-1197.35,0.0003589,14]
[377617464,1754459470002,-400.0,0.0003589,14]
[377617465,1754459470012,-528.56828153,0.0003589,14]
[377617466,1754459470021,-400.0,0.0003589,14]
[377617467,1754459470031,-400.0,0.0003589,14]
[377617468,1754459470040,-400.0,0.0003589,14]
[377617469,1754459470049,-400.0,0.0003589,14]
[377617470,1754459470059,-618.52,0.0003589,14]
[377617471,1754459470068,-400.0,0.0003589,14]
[377617472,1754459470077,-400.0,0.0003589,14]
[377617473,1754459470086,-819.08,0.0003589,14]
[377617474,1754459470095,-400.0,0.0003589,14]
[377617475,1754459470106,-702.43,0.0003589,14]
[377617476,1754459470115,-400.0,0.0003589,14]
[377617477,1754459470124,-526.57,0.0003589,14]
[377617478,1754459470134,-571.11,0.0003589,14]
[377617479,1754459470143,-400.0,0.0003589,14]
[377617480,1754459470152,-400.0,0.0003589,14]
[377617481,1754459470162,-400.0,0.0003589,14]
[377617482,1754459470171,-400.0,0.0003589,14]
[377617483,1754459470181,-400.0,0.0003589,14]
[377617484,1754459470190,-1719.7,0.0003589,14]
[377617485,1754459470200,-1696.16,0.0003589,14]
[377617486,1754459470209,-400.0,0.0003589,14]
[377617487,1754459470218,-400.0,0.0003589,14]
[377617488,1754459470227,-400.0,0.0003589,14]
[377617489,1754459470237,-1191.0,0.0003589,14]
[377617490,1754459470246,-2731.53,0.0003589,14]
[377617491,1754459470255,-400.0,0.0003589,14]
[377617492,1754459470265,-400.0,0.0003589,14]
[377617493,1754459470274,-400.0,0.0003589,14]
[377617494,1754459470283,-400.0,0.0003589,14]
[377617495,1754459470292,-1399.41,0.0003589,14]
[377617496,1754459470301,-400.0,0.0003589,14]
[377617497,1754459470311,-400.0,0.0003589,14]
[377617498,1754459470320,-432.76,0.0003589,14]
[377617499,1754459470329,-400.0,0.0003589,14]
[377617500,1754459470338,-1435.5,0.0003589,14]
[377617501,1754459470348,-823.97,0.0003589,14]
[377617502,1754459470358,-784.19,0.0003589,2]
[377617503,1754459470367,-603.96,0.0003589,14]
[377617504,1754459470376,-400.0,0.0003589,14]
[377617505,1754459470386,-400.0,0.0003589,14]
[377617506,1754459470395,-690.48,0.0003589,14]
[377617507,1754459470404,-1228.1,0.0003589,14]
[377617508,1754459470414,-1010.79,0.0003589,14]
[377617509,1754459470423,-400.0,0.0003589,14]
[377617510,1754459470432,-400.0,0.0003589,14]
[377617511,1754459470442,-400.0,0.0003589,2]
[377617512,1754459470451,-400.0,0.0003589,14]
[377617513,1754459470460,-400.0,0.0003589,14]
[377617514,1754459470469,-400.0,0.0003589,14]
[377617515,1754459470479,-776.92,0.0003589,14]
[377617516,1754459470488,-400.0,0.0003589,14]
[377617517,1754459470497,-1275.39,0.0003589,14]
[377617518,1754459470507,-400.0,0.0003589,14]
[377617519,1754459470516,-945.57,0.0003589,14]
[377617520,1754459470525,-1297.05,0.0003589,14]
[377617521,1754459470535,-400.0,0.0003589,14]
[377617522,1754459470545,-400.0,0.0003589,14]
[377617523,1754459470555,-3116.34,0.0003589,14]
[377617524,1754459470564,-2018.82,0.0003589,14]
[377617525,1754459470573,-2061.62,0.0003589,14]
[377617526,1754459470583,-400.0,0.0003589,14]
[377617527,1754459470594,-400.0,0.0003589,14]
[377617528,1754459470604,-400.0,0.0003589,14]
[377617529,1754459470613,-2089.58,0.0003589,14]
[377617530,1754459470623,-477.09,0.0003589,14]
[377617531,1754459470632,-443.03,0.0003589,14]
[377617532,1754459470641,-400.0,0.0003589,14]
[377617533,1754459470651,-972.7,0.0003589,14]
[377617534,1754459470659,-904.26,0.0003589,14]
[377617535,1754459470668,-714.48,0.0003589,14]
[377617536,1754459470677,-400.0,0.0003589,14]
[377617537,1754459470686,-400.0,0.0003589,14]
[377617538,1754459470696,-400.0,0.0003589,14]
[377617539,1754459470705,-1865.78,0.0003589,14]
[377617540,1754459470715,-400.0,0.0003589,14]
[377617541,1754459470724,-862.34,0.0003589,14]
[377617542,1754459470733,-1004.93,0.0003589,14]
[377617543,1754459470742,-2027.61,0.0003589,14]
[377617544,1754459470751,-400.0,0.0003589,14]
[377617545,1754459470760,-400.0,0.0003589,14]
[377617546,1754459470769,-479.8,0.0003589,14]
[377617547,1754459470779,-1056.98,0.0003589,14]